bitfinex/quotes_BTCUSD_20220207
["timestamp","ask_amount","ask_price","bid_price","bid_amount"]
[1644248394703,0.00042016,43708.0,43704.0,0.47120158]
[1644248394902,0.00042016,43708.0,43704.0,0.23277404]
[1644248395202,0.10043066,43705.0,43704.0,0.18277404]
[1644248395402,0.44147778,43705.0,43704.0,0.18277404]
[1644248395648,0.77232592,43705.0,43704.0,0.18277404]
[1644248395849,0.54147778,43705.0,43704.0,0.18277404]
[1644248396750,0.69972458,43704.0,43696.0,0.00029767]
[1644248396950,0.54831612,43705.0,43695.0,0.02122188]
[1644248397149,0.04316166,43701.0,43695.0,0.02122188]
[1644248397353,0.04316166,43701.0,43697.0,0.23225178]
[1644248397750,0.00042016,43700.0,43697.0,0.23225178]
[1644248397951,0.00042016,43700.0,43697.0,0.22225178]
[1644248398352,0.00042016,43700.0,43698.0,0.05]
[1644248398651,0.057269,43705.0,43695.0,0.02151955]
[1644248398852,0.057269,43705.0,43695.0,0.02122188]
[1644248399055,0.00039863,43701.0,43697.0,0.00683834]
[1644248399306,0.00039863,43701.0,43700.0,0.00683834]
[1644248399499,0.057269,43705.0,43701.0,0.8]
[1644248399500,0.05266763,43705.0,43701.0,0.8]
[1644248399699,0.05266763,43705.0,43704.0,0.00683834]
[1644248400003,0.00111656,43709.0,43705.0,0.8]
[1644248400201,0.14845362,43724.0,43705.0,0.8]
[1644248400202,0.14845362,43724.0,43709.0,0.8]
[1644248400405,0.002,43724.0,43722.0,0.00683834]
[1644248400609,0.002,43724.0,43711.0,1.124742]
[1644248400610,0.001,43724.0,43711.0,1.124742]
[1644248400801,0.001,43731.0,43715.0,0.05]
[1644248401000,0.001,43731.0,43730.0,0.32179267]
[1644248401199,0.001,43731.0,43725.0,0.07066505]
[1644248401200,0.001,43731.0,43727.0,0.4332946]
[1644248401402,0.001,43731.0,43730.0,0.05]
[1644248401600,0.02,43739.0,43737.0,0.2540022]
[1644248401800,0.02,43739.0,43730.0,0.295]
[1644248401801,0.22911346,43734.0,43730.0,0.295]
[1644248402201,0.02,43739.0,43730.0,0.295]
[1644248402604,0.02,43739.0,43733.0,0.29235232]
[1644248402803,0.02776697,43739.0,43734.0,0.30156976]
[1644248403255,0.00014574,43737.0,43734.0,0.35156976]
[1644248403552,0.00014574,43737.0,43734.0,0.16439274]
[1644248403753,0.00014574,43737.0,43734.0,0.11439274]
[1644248403952,0.02776697,43739.0,43734.0,0.11439274]
[1644248404153,0.02776697,43739.0,43733.0,0.0885]
[1644248404154,0.02776697,43739.0,43738.0,0.20673768]
[1644248404554,0.02776697,43739.0,43738.0,0.25673768]
[1644248405156,0.02776697,43739.0,43738.0,0.47603143]
[1644248405354,0.02776697,43739.0,43738.0,0.25673768]
[1644248405954,0.02776697,43739.0,43734.0,0.0003]
[1644248406356,0.02776697,43739.0,43735.0,0.02132292]
[1644248406557,0.07776697,43739.0,43735.0,0.02132292]
[1644248406818,0.02825218,43739.0,43735.0,0.02132292]
[1644248407208,0.3587966,43739.0,43735.0,0.02132292]
[1644248407508,0.08848,43738.0,43735.0,0.02132292]
[1644248407908,0.05,43737.0,43735.0,0.02132292]
[1644248408108,0.08848,43738.0,43735.0,0.02132292]
[1644248408307,0.05,43737.0,43735.0,0.02132292]
[1644248408508,0.08848,43738.0,43736.0,0.22698229]
[1644248408709,0.08848,43738.0,43737.0,0.05]
[1644248409311,0.08348,43738.0,43737.0,0.05]
[1644248409610,0.11772697,43739.0,43737.0,0.05]
[1644248410110,0.1173347,43739.0,43737.0,0.05]
[1644248410551,0.002,43746.0,43738.0,0.45]
[1644248410752,0.09448,43751.0,43741.0,0.05719001]
[1644248410951,0.09448,43751.0,43743.0,0.21567646]
[1644248411150,0.09448,43751.0,43743.0,0.56567646]
[1644248411351,0.002,43753.0,43747.0,0.8]
[1644248411554,0.002,43753.0,43747.0,0.95285887]
[1644248411753,0.002,43753.0,43747.0,1.05285887]
[1644248411952,0.0001,43753.0,43748.0,0.8]
[1644248412353,3e-05,43754.0,43748.0,1.15]
[1644248412553,3e-05,43754.0,43749.0,0.114354]
[1644248412753,3e-05,43754.0,43750.0,0.05]
[1644248412957,0.00040536,43753.0,43750.0,0.29298592]
[1644248413153,0.23044,43752.0,43751.0,0.25162688]
[1644248413353,0.23044,43752.0,43751.0,0.85721967]
[1644248413953,0.23044,43752.0,43751.0,1.35721967]
[1644248414403,0.0016212,43760.0,43752.0,1.295]
[1644248414604,0.00072456,43762.0,43754.0,0.11433543]
[1644248414806,0.03590686,43779.0,43761.0,0.01409314]
[1644248415004,0.23044,43778.0,43770.0,0.01409314]
[1644248415203,0.31892,43778.0,43769.0,0.05]
[1644248415403,0.03590686,43770.0,43763.0,0.114318]
[1644248415707,0.03590686,43770.0,43753.0,0.01409314]
[1644248415708,0.02090686,43764.0,43742.0,0.02909314]
[1644248415905,0.02090686,43752.0,43745.0,0.3]
[1644248416102,0.02090686,43752.0,43751.0,0.5003]
[1644248416303,0.02090686,43752.0,43751.0,0.02182381]
[1644248416702,0.02090686,43752.0,43751.0,0.02152381]
[1644248417301,0.114409,43753.0,43751.0,0.02152381]
[1644248417508,0.1,43757.0,43751.0,0.02152381]
[1644248417509,0.1,43772.0,43752.0,0.37473514]
[1644248417703,0.31892,43778.0,43753.0,0.3]
[1644248417704,0.00158482,43773.0,43753.0,0.3]
[1644248417904,0.17894974,43767.0,43761.0,0.20526887]
[1644248418159,0.17894974,43767.0,43762.0,0.51528448]
[1644248418361,0.00158482,43773.0,43764.0,0.32614439]
[1644248418660,0.08848,43778.0,43762.0,0.24054248]
[1644248418860,0.05,43777.0,43762.0,0.24054248]
[1644248419159,0.00039378,43771.0,43762.0,0.24054248]
[1644248419357,0.00039378,43771.0,43762.0,0.05]
[1644248419358,0.05,43763.0,43762.0,0.05]
[1644248419559,0.05,43763.0,43758.0,0.00065758]
[1644248419758,0.05,43759.0,43758.0,0.00065758]
[1644248419958,0.05,43759.0,43736.0,0.25]
[1644248419959,0.05,43759.0,43753.0,0.01936596]
[1644248420160,0.057196,43771.0,43758.0,0.00065756]
[1644248420358,0.05,43761.0,43758.0,0.00065756]
[1644248420759,0.35955649,43760.0,43758.0,0.00065756]
[1644248421158,0.35955649,43760.0,43754.0,0.02008866]
[1644248421159,0.20274375,43759.0,43754.0,0.02008866]
[1644248421358,0.8,43758.0,43745.0,0.05]
[1644248421569,0.8,43758.0,43731.0,0.02]
[1644248421570,0.34345955,43746.0,43731.0,0.02]
[1644248421816,0.05,43732.0,43731.0,0.02]
[1644248422207,0.973925,43732.0,43731.0,0.02]
[1644248422406,1.29418891,43732.0,43731.0,0.02]
[1644248422606,1.29418891,43732.0,43723.0,0.02077702]
[1644248422607,0.8,43731.0,43723.0,0.02077702]
[1644248422811,0.05,43724.0,43723.0,0.02077702]
[1644248423005,0.05,43724.0,43723.0,0.00077702]
[1644248423205,0.1,43731.0,43724.0,0.43941954]
[1644248423609,0.3970509,43730.0,43723.0,0.00077702]
[1644248423806,0.05,43725.0,43711.0,0.02]
[1644248424007,0.8,43728.0,43711.0,0.02]
[1644248424008,1.1,43728.0,43725.0,0.0007263]
[1644248424205,1.1,43728.0,43711.0,0.02]
[1644248424206,0.0385,43727.0,43711.0,0.02]
[1644248424405,5.074301,43727.0,43712.0,0.00290609]
[1644248424607,0.0385,43727.0,43712.0,0.00290609]
[1644248424807,0.310262,43727.0,43712.0,0.00290609]
[1644248425106,0.360262,43727.0,43712.0,0.00290609]
[1644248425308,0.06788816,43722.0,43712.0,0.00290609]
[1644248425550,0.06788816,43722.0,43711.0,0.02]
[1644248425751,0.22351936,43721.0,43711.0,0.02]
[1644248426051,0.21967047,43723.0,43717.0,0.14032]
[1644248426256,0.210262,43727.0,43717.0,0.14032]
[1644248426257,0.0385,43727.0,43717.0,0.14032]
[1644248426451,0.057233,43736.0,43717.0,0.13117]
[1644248426452,0.0385,43733.0,43717.0,0.13117]
[1644248426651,0.0385,43733.0,43724.0,0.05]
[1644248426851,0.31194707,43745.0,43727.0,0.05]
[1644248427052,0.35497063,43740.0,43733.0,0.2517401]
[1644248427252,0.35497063,43740.0,43724.0,0.05]
[1644248427453,0.35497063,43740.0,43719.0,0.00010226]
[1644248427652,0.35497063,43740.0,43717.0,0.18027226]
[1644248427653,0.8,43738.0,43717.0,0.18027226]
[1644248427853,0.8,43738.0,43719.0,0.05]
[1644248428051,0.3,43739.0,43717.0,0.18027226]
[1644248428052,0.00115242,43727.0,43725.0,0.05]
[1644248428253,0.00115242,43727.0,43726.0,0.20797233]
[1644248428452,0.00115242,43727.0,43726.0,0.25797233]
[1644248428652,0.00115242,43727.0,43726.0,0.05]
[1644248429054,0.00115242,43727.0,43726.0,0.2980182]
[1644248429315,0.22903126,43750.0,43728.0,0.8]
[1644248429507,0.5014,43773.0,43749.0,0.05]
[1644248429508,0.001,43766.0,43749.0,0.05]
[1644248429704,0.07728685,43758.0,43750.0,0.3]
[1644248429905,0.07728685,43758.0,43742.0,0.1344767]
[1644248430104,0.19092246,43755.0,43739.0,0.1344908]
[1644248430305,0.07728685,43758.0,43740.0,0.3]
[1644248430505,0.001,43766.0,43757.0,0.05]
[1644248430707,0.001,43766.0,43759.0,0.05]
[1644248430907,0.001,43766.0,43763.0,0.05]
[1644248430908,0.38147399,43764.0,43763.0,0.05]
[1644248431105,0.38147399,43764.0,43756.0,0.05]
[1644248431306,0.21225639,43761.0,43752.0,0.05]
[1644248431512,0.07292274,43757.0,43748.0,0.05]
[1644248431704,0.07292274,43757.0,43745.0,0.3]
[1644248431905,0.07292274,43757.0,43740.0,0.114368]
[1644248432106,0.07292274,43757.0,43739.0,0.19050121]
[1644248432107,0.31496386,43749.0,43739.0,0.19050121]
[1644248432304,0.07292274,43757.0,43745.0,0.05]
[1644248432506,0.07264774,43757.0,43746.0,0.3]
[1644248432704,0.07264774,43757.0,43745.0,0.05]
[1644248433056,0.20535586,43754.0,43740.0,0.35]
[1644248433261,0.3,43753.0,43737.0,0.07082408]
[1644248433460,0.3,43753.0,43737.0,0.02082408]
[1644248433461,0.25352383,43748.0,43737.0,0.02082408]
[1644248433656,0.0001,43750.0,43737.0,0.02082408]
[1644248433857,0.07908271,43746.0,43737.0,0.02082408]
[1644248434061,0.23705852,43739.0,43737.0,0.02082408]
[1644248434261,0.75,43738.0,43737.0,0.0007267]
[1644248434561,2.28025608,43738.0,43737.0,0.0007267]
[1644248434760,3.20136708,43738.0,43737.0,0.0007267]
[1644248435060,6.88983974,43738.0,43737.0,0.020867]
[1644248435260,2.5698443,43738.0,43737.0,0.0201403]
[1644248435459,2.4889383,43738.0,43737.0,0.0201403]
[1644248435666,2.4754753,43738.0,43737.0,0.0201403]
[1644248435860,0.6,43737.0,43726.0,0.0024435]
[1644248436060,0.29705298,43729.0,43726.0,0.0024435]
[1644248436461,0.31925393,43736.0,43726.0,0.0024435]
[1644248436663,0.15,43737.0,43726.0,0.0024435]
[1644248436921,0.46928836,43737.0,43726.0,0.0024435]
[1644248437920,0.27663857,43732.0,43730.0,0.00240377]
[1644248438821,0.48737517,43732.0,43730.0,0.00240377]
[1644248439024,0.48737517,43732.0,43730.0,0.00247186]
[1644248439225,0.58737517,43732.0,43730.0,0.00247186]
[1644248439422,0.2615208,43731.0,43730.0,0.00247186]
[1644248439621,0.58737517,43732.0,43730.0,0.00247186]
[1644248439822,0.27163857,43732.0,43730.0,0.00247186]
[1644248440222,0.01938383,43737.0,43731.0,0.05]
[1644248440423,0.01938383,43737.0,43730.0,0.00247186]
[1644248440424,0.01938383,43737.0,43735.0,0.05]
[1644248440654,0.01938383,43737.0,43732.0,0.05]
[1644248440851,0.19784741,43740.0,43730.0,0.00247186]
[1644248440852,0.21602023,43734.0,43730.0,0.00247186]
[1644248441051,0.21602023,43734.0,43729.0,0.00058561]
[1644248441052,0.05,43733.0,43729.0,0.00058561]
[1644248441253,0.05,43733.0,43713.0,0.18453899]
[1644248441254,0.0385,43732.0,43713.0,0.18453899]
[1644248441451,0.0218,43732.0,43730.0,0.00058559]
[1644248441653,0.22664715,43731.0,43730.0,0.00058559]
[1644248441857,6.36760098,43731.0,43730.0,0.00058559]
[1644248442052,3.66001915,43731.0,43730.0,0.00029344]
[1644248442252,0.07151264,43719.0,43711.0,0.02]
[1644248442454,0.07151264,43719.0,43713.0,0.05]
[1644248442854,0.07151264,43719.0,43711.0,0.02]
[1644248443156,0.27704985,43719.0,43711.0,0.02]
[1644248443355,0.1,43720.0,43714.0,0.05]
[1644248443555,0.1,43720.0,43711.0,0.065]
[1644248443855,0.1,43725.0,43714.0,0.05]
[1644248444057,0.10014118,43733.0,43724.0,0.05]
[1644248444311,0.00014118,43733.0,43725.0,0.2870777]
[1644248444511,0.3714368,43732.0,43725.0,0.05]
[1644248444706,0.3714368,43732.0,43727.0,0.05]
[1644248445705,0.00014122,43733.0,43722.0,0.05]
[1644248445706,0.32439094,43725.0,43722.0,0.05]
[1644248446106,0.32439094,43725.0,43718.0,0.05]
[1644248446304,0.07665228,43729.0,43724.0,0.05]
[1644248446504,0.52,43734.0,43721.0,0.00072606]
[1644248446505,0.00047067,43733.0,43721.0,0.00072606]
[1644248447109,0.02018175,43726.0,43721.0,0.00072606]
[1644248447408,0.27343613,43726.0,43720.0,0.05]
[1644248447608,0.27343613,43726.0,43725.0,0.00072602]
[1644248447805,0.19505161,43726.0,43725.0,0.00072602]
[1644248448555,0.19505161,43726.0,43720.0,0.30355366]
[1644248448757,0.26513287,43726.0,43720.0,0.35355366]
[1644248449056,0.05,43722.0,43716.0,0.02137614]
[1644248449257,0.05,43717.0,43716.0,0.02137614]
[1644248449459,0.41513287,43726.0,43716.0,0.02137614]
[1644248449958,0.41513287,43726.0,43711.0,0.015]
[1644248449959,0.26406237,43712.0,43711.0,0.015]
[1644248450158,0.89691733,43712.0,43711.0,0.015]
[1644248450357,0.59285496,43712.0,43711.0,0.015]
[1644248450557,0.33768175,43712.0,43711.0,0.015]
[1644248451361,0.02137614,43717.0,43711.0,0.015]
[1644248452406,0.27288278,43716.0,43711.0,0.015]
[1644248452606,0.27288278,43716.0,43712.0,0.00072566]
[1644248453206,0.32288278,43716.0,43712.0,0.00072566]
[1644248453506,0.32288278,43716.0,43711.0,0.015]
[1644248453507,0.08404206,43715.0,43711.0,0.015]
[1644248453706,0.08404206,43715.0,43712.0,0.00072566]
[1644248454307,0.42288278,43716.0,43712.0,0.00072566]
[1644248454809,0.42288278,43716.0,43711.0,0.015]
[1644248455006,0.42288278,43716.0,43712.0,0.00072566]
[1644248455207,0.87019858,43712.0,43705.0,0.00290306]
[1644248455407,0.04,43706.0,43705.0,0.00290306]
[1644248455662,0.41454976,43706.0,43705.0,0.00290306]
[1644248455961,0.56454976,43706.0,43705.0,0.00290306]
[1644248456160,0.56454976,43706.0,43704.0,0.08786]
[1644248456360,0.07320305,43705.0,43704.0,0.31667]
[1644248456561,0.1,43706.0,43704.0,0.31667]
[1644248456762,0.19858966,43716.0,43705.0,0.08786]
[1644248456966,0.19858966,43716.0,43705.0,0.09786]
[1644248456967,0.01911854,43716.0,43705.0,0.09786]
[1644248457161,0.01978962,43709.0,43705.0,0.01]
[1644248457363,0.01978962,43709.0,43706.0,0.13185]
[1644248457561,0.01978962,43709.0,43707.0,0.31665]
[1644248457760,0.01978962,43709.0,43708.0,0.13184]
[1644248457962,0.01978962,43709.0,43708.0,0.35563]
[1644248458763,0.0196032,43713.0,43708.0,0.35563]
[1644248458963,0.04,43711.0,43709.0,0.22878]
[1644248459308,0.0196032,43713.0,43711.0,0.20765268]
[1644248459705,0.0196032,43713.0,43712.0,0.22877]
[1644248460106,0.37681821,43713.0,43712.0,0.22877]
[1644248460304,0.0096032,43713.0,43712.0,0.22877]
[1644248460704,0.0096032,43713.0,43712.0,0.22377]
[1644248460705,0.04,43713.0,43712.0,0.22377]
[1644248461107,0.00115011,43714.0,43712.0,0.22377]
[1644248461606,0.00115011,43714.0,43710.0,0.00072273]
[1644248461607,0.04,43713.0,43710.0,0.00072273]
[1644248461807,0.04,43713.0,43701.0,0.02029767]
[1644248461808,0.85,43711.0,43701.0,0.02029767]
[1644248462010,0.04,43702.0,43701.0,0.02029767]
[1644248462209,0.8,43701.0,43700.0,0.05248873]
[1644248462410,0.8,43701.0,43699.0,0.00289162]
[1644248462411,0.8,43700.0,43693.0,0.13218767]
[1644248462609,0.04,43694.0,43693.0,0.21978]
[1644248462811,0.0822,43694.0,43693.0,0.21978]
[1644248463056,0.0822,43694.0,43692.0,0.04]
[1644248463257,0.0822,43694.0,43682.0,0.00029767]
[1644248463258,0.1322,43694.0,43682.0,0.00029767]
[1644248463458,3.06767784,43693.0,43683.0,0.22892]
[1644248463660,0.04,43684.0,43683.0,0.22892]
[1644248463858,0.0822,43684.0,43683.0,0.22892]
[1644248464059,0.0822,43684.0,43679.0,0.20800754]
[1644248464060,0.8,43682.0,43679.0,0.20800754]
[1644248464261,0.8,43682.0,43671.0,0.08793]
[1644248464262,0.84,43680.0,43671.0,0.08793]
[1644248464464,0.04,43672.0,43671.0,0.20828905]
[1644248464659,0.8,43671.0,43659.0,0.001]
[1644248464860,0.8,43671.0,43652.0,0.08798]
[1644248464861,0.04,43660.0,43652.0,0.08798]
[1644248465067,0.30040998,43659.0,43653.0,0.001]
[1644248465258,0.42831827,43654.0,43653.0,0.001]
[1644248465460,0.42831827,43654.0,43652.0,0.31806]
[1644248465461,0.06117818,43654.0,43652.0,0.31806]
[1644248465658,0.75,43653.0,43651.0,0.02]
[1644248465859,0.0422,43652.0,43651.0,0.02]
[1644248466159,0.0422,43652.0,43647.0,0.00121316]
[1644248466160,7.55140135,43652.0,43647.0,0.00121316]
[1644248466359,6.625363,43652.0,43647.0,0.00121316]
[1644248466558,6.405147,43651.0,43647.0,0.00121316]
[1644248466823,6.405147,43651.0,43648.0,0.05]
[1644248466824,2.725953,43651.0,43648.0,0.05]
[1644248467018,0.685308,43650.0,43644.0,0.00041803]
[1644248467217,0.057341,43653.0,43648.0,0.2382029]
[1644248467218,0.0422,43649.0,43648.0,0.2382029]
[1644248467418,0.0422,43649.0,43646.0,0.05]
[1644248468421,0.02150573,43655.0,43646.0,0.05]
[1644248468620,0.02150573,43655.0,43654.0,0.05]
[1644248468921,0.02123039,43655.0,43654.0,0.05]
[1644248469321,0.02123039,43655.0,43654.0,0.25829763]
[1644248469523,0.00011704,43657.0,43654.0,0.30829763]
[1644248469927,0.0422,43668.0,43655.0,0.8]
[1644248470127,0.0422,43668.0,43667.0,0.05]
[1644248470557,0.22942452,43675.0,43668.0,0.8]
[1644248470756,0.22302452,43675.0,43674.0,0.25065803]
[1644248470959,0.22302452,43675.0,43674.0,0.30065803]
[1644248471155,0.0010975,43681.0,43675.0,0.8]
[1644248471361,0.0010975,43681.0,43680.0,0.05]
[1644248471556,0.0010975,43681.0,43680.0,0.26823865]
[1644248471755,0.0010975,43681.0,43680.0,0.31823865]
[1644248471956,0.37195315,43702.0,43680.0,0.31823865]
[1644248471958,0.171849,43705.0,43680.0,0.31823865]
[1644248472158,0.07868036,43693.0,43681.0,0.35]
[1644248472356,0.07868036,43693.0,43681.0,0.05]
[1644248472759,0.07868036,43693.0,43676.0,0.31855365]
[1644248472760,0.27394761,43694.0,43676.0,0.31855365]
[1644248472957,0.27394761,43694.0,43681.0,0.20034712]
[1644248472958,0.057286,43693.0,43681.0,0.20034712]
[1644248473157,0.00014633,43689.0,43688.0,0.05]
[1644248473557,0.00014633,43689.0,43679.0,0.05]
[1644248473763,0.00014633,43689.0,43676.0,0.22395743]
[1644248473764,0.25305937,43687.0,43676.0,0.22395743]
[1644248473957,0.25305937,43687.0,43676.0,0.01855365]
[1644248474158,0.25305937,43687.0,43676.0,0.06855365]
[1644248474410,0.057295,43686.0,43676.0,0.01855365]
[1644248474609,0.30030446,43677.0,43676.0,0.01855365]
[1644248475410,0.30030446,43677.0,43670.0,0.05]
[1644248475411,0.30030446,43677.0,43660.0,0.057299]
[1644248475608,0.31885811,43677.0,43660.0,0.057299]
[1644248475809,0.31885811,43677.0,43658.0,0.99778986]
[1644248475810,0.07691895,43664.0,43658.0,0.99778986]
[1644248476010,0.07691895,43664.0,43651.0,0.07]
[1644248476209,0.12691895,43664.0,43651.0,0.07]
[1644248476512,0.12691895,43664.0,43653.0,0.26807276]
[1644248476513,0.37831702,43664.0,43653.0,0.26807276]
[1644248476708,0.07691895,43664.0,43653.0,0.26807276]
[1644248476908,0.17691895,43664.0,43655.0,0.2130686]
[1644248477108,0.37285588,43661.0,43655.0,0.2130686]
[1644248477308,0.47285588,43661.0,43655.0,0.2130686]
[1644248477509,0.05,43660.0,43655.0,0.2130686]
[1644248477709,0.47285588,43661.0,43655.0,0.2130686]
[1644248478064,0.47285588,43661.0,43655.0,0.02127158]
[1644248478065,0.00014596,43660.0,43655.0,0.02127158]
[1644248478462,0.057329,43659.0,43655.0,0.02127158]
[1644248478658,0.057329,43659.0,43651.0,0.33512278]
[1644248478659,0.057329,43659.0,43645.0,0.00129024]
[1644248478860,0.02127158,43656.0,43645.0,0.00129024]
[1644248479059,0.02127158,43656.0,43655.0,0.26054816]
[1644248479459,0.02127158,43656.0,43652.0,0.19991635]
[1644248479659,0.02127158,43656.0,43645.0,0.00129024]
[1644248480059,0.02127158,43656.0,43641.0,0.77321529]
[1644248480264,0.02127158,43656.0,43644.0,0.00029465]
[1644248480460,0.02127158,43656.0,43643.0,0.00084248]
[1644248480663,0.02127158,43656.0,43643.0,0.07575013]
[1644248480859,0.02127158,43656.0,43643.0,0.00156063]
[1644248481059,0.00048647,43657.0,43643.0,0.00156063]
[1644248481259,0.00048647,43657.0,43653.0,0.26800648]
[1644248481662,0.15712115,43663.0,43653.0,0.26300648]
[1644248481909,0.3,43670.0,43654.0,0.3]
[1644248482110,0.3,43670.0,43653.0,0.31300648]
[1644248482509,0.3,43670.0,43660.0,0.24702195]
[1644248482710,0.3208186,43670.0,43660.0,0.29702195]
[1644248483010,0.00014711,43664.0,43660.0,0.29702195]
[1644248483412,0.00014711,43664.0,43660.0,0.24702195]
[1644248483612,0.2296297,43664.0,43647.0,0.114624]
[1644248483811,0.2296297,43664.0,43651.0,0.05]
[1644248483812,0.22948259,43664.0,43651.0,0.05]
[1644248484012,0.22948259,43664.0,43650.0,0.05]
[1644248484013,0.22948259,43664.0,43653.0,0.057311]
[1644248484210,0.65840822,43670.0,43653.0,0.057311]
[1644248484410,0.00048831,43658.0,43653.0,0.057311]
[1644248484811,0.00048831,43658.0,43654.0,0.5030444]
[1644248485013,0.02176901,43664.0,43654.0,0.5030444]
[1644248485014,0.02176901,43664.0,43655.0,0.8]
[1644248485213,0.02176901,43664.0,43656.0,0.3]
[1644248485651,0.02176901,43664.0,43657.0,0.0422]
[1644248486052,0.02176901,43664.0,43661.0,0.057301]
[1644248486254,0.02176901,43664.0,43656.0,0.17189]
[1644248486453,0.02176901,43664.0,43647.0,0.057317]
[1644248486652,0.05,43663.0,43639.0,0.28531914]
[1644248486852,0.02176901,43664.0,43643.0,1.21326948]
[1644248487052,0.057325,43662.0,43643.0,1.21326948]
[1644248487253,0.02176901,43664.0,43650.0,0.24076943]
[1644248487652,0.01964582,43667.0,43650.0,0.24076943]
[1644248487953,0.00014649,43660.0,43650.0,0.52984542]
[1644248488152,0.00014649,43660.0,43650.0,0.64446942]
[1644248488355,0.00014649,43660.0,43657.0,0.22758319]
[1644248488551,0.00014649,43660.0,43658.0,0.05]
[1644248488952,0.00089146,43663.0,43658.0,0.22591]
[1644248489152,0.00089146,43663.0,43661.0,0.19665674]
[1644248489410,0.00089146,43663.0,43661.0,0.24665674]
[1644248489607,0.00089146,43663.0,43661.0,0.21665674]
[1644248489810,0.00089146,43663.0,43658.0,0.290519]
[1644248490007,0.00089146,43663.0,43658.0,0.17591]
[1644248490406,0.00103774,43663.0,43658.0,0.17591]
[1644248491010,0.00103774,43663.0,43661.0,0.19323328]
[1644248491209,0.00103774,43663.0,43661.0,0.08796]
[1644248491410,0.02156897,43667.0,43661.0,0.13796]
[1644248491411,0.33205905,43665.0,43661.0,0.13796]
[1644248491608,0.00014628,43664.0,43661.0,0.13796]
[1644248491807,0.00014628,43664.0,43661.0,0.08796]
[1644248492208,0.25721822,43662.0,43661.0,0.08796]
[1644248492413,0.30721822,43662.0,43661.0,0.08796]
[1644248492610,0.62591024,43662.0,43661.0,0.08796]
[1644248492810,0.72691196,43662.0,43661.0,0.08796]
[1644248493054,0.40821994,43662.0,43645.0,0.03533738]
[1644248493253,0.31554494,43662.0,43651.0,0.23864208]
[1644248493454,0.25821994,43662.0,43651.0,0.23864208]
[1644248493657,0.25821994,43662.0,43653.0,0.057313]
[1644248494554,0.08865529,43659.0,43653.0,0.057313]
[1644248494854,0.2793916,43662.0,43653.0,0.057313]
[1644248495054,0.2793916,43662.0,43655.0,0.22580469]
[1644248495253,0.2793916,43662.0,43653.0,0.057313]
[1644248495456,0.31767334,43658.0,43654.0,0.22907]
[1644248495755,0.31760273,43661.0,43654.0,0.36107]
[1644248495954,0.46263537,43661.0,43654.0,0.36107]
[1644248496154,0.057329,43659.0,43654.0,0.36107]
[1644248496554,0.35686715,43655.0,43651.0,0.00029434]
[1644248496814,0.45686715,43655.0,43646.0,0.00029434]
[1644248497107,0.07559331,43658.0,43645.0,0.32723961]
[1644248497406,0.057335,43653.0,43645.0,0.057332]
[1644248497608,0.057335,43653.0,43644.0,0.00029434]
[1644248497609,0.2575826,43652.0,43644.0,0.00029434]
[1644248497907,0.07555912,43647.0,43645.0,0.00071906]
[1644248498105,0.114695,43650.0,43645.0,0.00071906]
[1644248498708,0.114695,43650.0,43644.0,0.00029434]
[1644248498911,0.13482724,43650.0,43645.0,0.00071905]
[1644248499207,0.28022828,43646.0,43645.0,0.00071905]
[1644248500009,1.47219189,43646.0,43643.0,0.00084248]
[1644248500208,0.15712115,43645.0,43643.0,0.00156155]
[1644248500407,0.057354,43644.0,43643.0,0.00156155]
[1644248500879,0.196093,43644.0,43643.0,0.00156155]
[1644248501074,0.36650176,43641.0,43632.0,0.47179608]
[1644248501277,0.36650176,43641.0,43630.0,0.16564388]
[1644248501278,0.1,43641.0,43636.0,0.00029441]
[1644248501480,0.19590796,43637.0,43631.0,0.06029441]
[1644248501675,0.19590796,43637.0,43631.0,0.05787687]
[1644248501877,0.19590796,43637.0,43630.0,0.05]
[1644248502074,0.19590796,43637.0,43628.0,0.05]
[1644248502676,0.057352,43639.0,43631.0,0.24225022]
[1644248502877,0.02106003,43647.0,43638.0,0.05]
[1644248502878,0.15712115,43646.0,43638.0,0.05]
[1644248503076,0.15712115,43646.0,43632.0,0.28279436]
[1644248503077,0.15712115,43646.0,43645.0,0.05]
[1644248503278,0.3680398,43652.0,43636.0,0.3]
[1644248503475,0.00083003,43646.0,43636.0,0.05]
[1644248503677,0.00083003,43646.0,43639.0,0.20987512]
[1644248503877,0.00083003,43646.0,43639.0,0.25487512]
[1644248504707,0.22846983,43652.0,43646.0,0.25035393]
[1644248504909,0.01960495,43650.0,43646.0,0.25035393]
[1644248505310,0.01960495,43650.0,43646.0,0.30035393]
[1644248505509,0.01960495,43650.0,43648.0,0.05]
[1644248505710,4.95e-06,43650.0,43649.0,1.11388888]
[1644248505910,0.057316,43663.0,43649.0,1.11388888]
[1644248506111,0.057316,43663.0,43654.0,0.05]
[1644248506411,0.057316,43663.0,43653.0,0.057316]
[1644248506615,0.23537,43650.0,43649.0,0.8]
[1644248506810,0.23537,43650.0,43649.0,0.05]
[1644248507713,0.00050596,43652.0,43650.0,0.8]
[1644248507914,0.00050596,43652.0,43651.0,0.05]
[1644248508153,0.00050596,43652.0,43651.0,0.1]
[1644248508355,0.00050596,43652.0,43651.0,0.66434957]
[1644248508552,0.02130607,43663.0,43651.0,0.66434957]
[1644248508752,0.02130607,43663.0,43654.0,0.05]
[1644248509553,0.02130607,43663.0,43652.0,0.06586989]
[1644248509554,0.01805586,43656.0,43652.0,0.06586989]
[1644248509760,0.01805586,43656.0,43655.0,0.05]
[1644248509955,5.586e-05,43656.0,43655.0,0.05]
[1644248510356,5.586e-05,43656.0,43653.0,0.107311]
[1644248510558,5.586e-05,43656.0,43653.0,0.34798748]
[1644248510757,0.057316,43662.0,43653.0,0.657311]
[1644248510956,0.057316,43662.0,43653.0,0.107311]
[1644248511159,0.05675419,43662.0,43653.0,0.057311]
[1644248511358,0.40526184,43663.0,43646.0,0.05]
[1644248511359,0.40526184,43663.0,43659.0,0.93020228]
[1644248511557,0.23081744,43662.0,43659.0,0.93020228]
[1644248512007,0.23081744,43662.0,43659.0,0.90030228]
[1644248512207,0.31275702,43662.0,43659.0,0.90030228]